[Event "Early-Titled-Tuesday-Blitz-October-10-2023"]
[Site "Chess.com"]
[Date "2023.10.10"]
[Round "3"]
[White "LuisFSiles"]
[Black "Roman_Ovetchkin"]
[Result "0-1"]
[WhiteElo "2326"]
[BlackElo "2708"]
[TimeControl "180+1"]
[EndTime "8:28:19 PDT"]
[Termination "Roman_Ovetchkin won on time"]

1. e4 {[%clk 0:03:00.9]} 1... c6 {[%clk 0:02:59.7]} 2. d4 {[%clk 0:03:00]} 2...
d5 {[%clk 0:03:00.6]} 3. exd5 {[%clk 0:03:00.7]} 3... cxd5 {[%clk 0:03:00.5]} 4.
c4 {[%clk 0:03:01.6]} 4... Nf6 {[%clk 0:03:00.5]} 5. Nc3 {[%clk 0:03:02]} 5...
g6 {[%clk 0:03:01.1]} 6. cxd5 {[%clk 0:03:01.5]} 6... Bg7 {[%clk 0:02:58.2]} 7.
Bb5+ {[%clk 0:03:00.6]} 7... Nbd7 {[%clk 0:02:57.9]} 8. d6 {[%clk 0:02:54.7]}
8... exd6 {[%clk 0:02:57.4]} 9. Qe2+ {[%clk 0:02:54.5]} 9... Qe7 {[%clk
0:02:48.2]} 10. Bf4 {[%clk 0:02:53]} 10... Qxe2+ {[%clk 0:02:47.1]} 11. Bxe2
{[%clk 0:02:49.5]} 11... O-O {[%clk 0:02:30.5]} 12. Bxd6 {[%clk 0:02:42.6]}
12... Re8 {[%clk 0:02:30.2]} 13. Nf3 {[%clk 0:02:31.6]} 13... Nb6 {[%clk
0:02:21.4]} 14. O-O {[%clk 0:02:15.9]} 14... Nfd5 {[%clk 0:02:01.7]} 15. Nxd5
{[%clk 0:02:03.8]} 15... Nxd5 {[%clk 0:01:58.6]} 16. Bb5 {[%clk 0:01:50.4]}
16... Rd8 {[%clk 0:01:55.6]} 17. Be5 {[%clk 0:01:47.3]} 17... f6 {[%clk
0:01:55.3]} 18. Bg3 {[%clk 0:01:43.5]} 18... Be6 {[%clk 0:01:54.6]} 19. Rfe1
{[%clk 0:01:41.5]} 19... Bf7 {[%clk 0:01:53.3]} 20. a3 {[%clk 0:01:28.8]} 20...
Bh6 {[%clk 0:01:49.2]} 21. Bh4 {[%clk 0:00:38.6]} 21... Rac8 {[%clk 0:01:42.8]}
22. g4 {[%clk 0:00:37.9]} 22... Rc2 {[%clk 0:01:18.8]} 23. g5 {[%clk 0:00:35.7]}
23... Bg7 {[%clk 0:01:10.7]} 24. gxf6 {[%clk 0:00:29.4]} 24... Bxf6 {[%clk
0:01:10.7]} 25. Bxf6 {[%clk 0:00:25.7]} 25... Nxf6 {[%clk 0:01:11.6]} 26. Rac1
{[%clk 0:00:15.5]} 26... Rxb2 {[%clk 0:01:07.6]} 27. Bc4 {[%clk 0:00:14.6]}
27... Bxc4 {[%clk 0:00:59.9]} 28. Rxc4 {[%clk 0:00:15.5]} 28... Nd5 {[%clk
0:00:58.9]} 29. Ng5 {[%clk 0:00:11.8]} 29... Rd7 {[%clk 0:00:26]} 30. Re5 {[%clk
0:00:10.3]} 30... Nf4 {[%clk 0:00:20.4]} 31. h4 {[%clk 0:00:07.2]} 31... Kg7
{[%clk 0:00:17.5]} 32. Ne6+ {[%clk 0:00:06.1]} 32... Nxe6 {[%clk 0:00:16.8]} 33.
Rxe6 {[%clk 0:00:07]} 33... Rf7 {[%clk 0:00:16.4]} 34. d5 {[%clk 0:00:04.5]}
34... Rbxf2 {[%clk 0:00:15.4]} 35. d6 {[%clk 0:00:04]} 35... Rd2 {[%clk
0:00:15.4]} 36. Re7 {[%clk 0:00:02.7]} 36... Rxd6 {[%clk 0:00:09.5]} 37. Rcc7
{[%clk 0:00:02.7]} 37... Rxe7 {[%clk 0:00:08.8]} 38. Rxe7+ {[%clk 0:00:02.8]}
38... Kh6 {[%clk 0:00:09.7]} 39. Rxb7 {[%clk 0:00:02.7]} 39... Ra6 {[%clk
0:00:09.8]} 40. Rb3 {[%clk 0:00:02.7]} 40... Kh5 {[%clk 0:00:08.8]} 0-1

[Event "Early-Titled-Tuesday-Blitz-October-10-2023"]
[Site "Chess.com"]
[Date "2023.10.10"]
[Round "3"]
[White "ozates"]
[Black "ExchangeAB"]
[Result "1-0"]
[WhiteElo "2762"]
[BlackElo "2496"]
[TimeControl "180+1"]
[EndTime "8:28:19 PDT"]
[Termination "ozates won by resignation"]

1. c4 {[%clk 0:03:00.4]} 1... c6 {[%clk 0:02:59.3]} 2. Nf3 {[%clk 0:02:56.8]}
2... d5 {[%clk 0:02:59.7]} 3. Qc2 {[%clk 0:02:48.9]} 3... Nf6 {[%clk 0:02:59]}
4. g3 {[%clk 0:02:49]} 4... g6 {[%clk 0:02:58.9]} 5. Bg2 {[%clk 0:02:49.5]} 5...
Bg7 {[%clk 0:02:54.1]} 6. O-O {[%clk 0:02:49.4]} 6... O-O {[%clk 0:02:54.1]} 7.
d4 {[%clk 0:02:39.4]} 7... Bf5 {[%clk 0:02:51.5]} 8. Qb3 {[%clk 0:02:39.5]} 8...
Qb6 {[%clk 0:02:51.2]} 9. c5 {[%clk 0:02:27.6]} 9... Qxb3 {[%clk 0:02:49.8]} 10.
axb3 {[%clk 0:02:28.5]} 10... Na6 {[%clk 0:02:35.1]} 11. Nc3 {[%clk 0:02:21.3]}
11... Nd7 {[%clk 0:02:19.3]} 12. Bf4 {[%clk 0:02:12.4]} 12... e5 {[%clk
0:02:12.7]} 13. Nxe5 {[%clk 0:02:09.1]} 13... Nxe5 {[%clk 0:02:12.7]} 14. Bxe5
{[%clk 0:02:06.8]} 14... Bxe5 {[%clk 0:02:12.2]} 15. dxe5 {[%clk 0:02:07.7]}
15... Nxc5 {[%clk 0:02:12]} 16. b4 {[%clk 0:02:08.4]} 16... Nb3 {[%clk
0:01:59.3]} 17. Rad1 {[%clk 0:02:07.2]} 17... Bc2 {[%clk 0:01:49.7]} 18. e4
{[%clk 0:02:06.3]} 18... Bxd1 {[%clk 0:01:47]} 19. Rxd1 {[%clk 0:02:07.2]} 19...
dxe4 {[%clk 0:01:34.1]} 20. Nxe4 {[%clk 0:02:07.3]} 20... a5 {[%clk 0:01:32]}
21. bxa5 {[%clk 0:02:02.9]} 21... Rxa5 {[%clk 0:01:29.3]} 22. f4 {[%clk
0:02:02.7]} 22... Ra1 {[%clk 0:01:28.8]} 23. Rxa1 {[%clk 0:02:01.5]} 23... Nxa1
{[%clk 0:01:29.7]} 24. Nd6 {[%clk 0:02:00.7]} 24... Rb8 {[%clk 0:01:22.2]} 25.
Bf1 {[%clk 0:02:00.8]} 25... b5 {[%clk 0:01:00.4]} 26. Bg2 {[%clk 0:01:59.9]}
26... Rb6 {[%clk 0:00:57.5]} 27. Nc8 {[%clk 0:01:58.3]} 27... Ra6 {[%clk
0:00:56]} 28. Bxc6 {[%clk 0:01:52.6]} 28... b4 {[%clk 0:00:49.5]} 29. Bd5 {[%clk
0:01:27.9]} 29... Kg7 {[%clk 0:00:43]} 30. Nd6 {[%clk 0:01:26.6]} 30... Ra7
{[%clk 0:00:40.9]} 31. Kf2 {[%clk 0:01:22.3]} 31... Nc2 {[%clk 0:00:40.6]} 32.
Ke2 {[%clk 0:01:15]} 32... Nd4+ {[%clk 0:00:36.1]} 33. Kd3 {[%clk 0:01:13.5]}
33... Nf5 {[%clk 0:00:27.6]} 34. Ne8+ {[%clk 0:00:54.4]} 34... Kf8 {[%clk
0:00:27.2]} 35. Nf6 {[%clk 0:00:54.8]} 35... h5 {[%clk 0:00:24]} 36. Be4 {[%clk
0:00:41.6]} 36... Ne7 {[%clk 0:00:21]} 37. Kc4 {[%clk 0:00:40.9]} 37... Ra2
{[%clk 0:00:17.6]} 38. Kb3 {[%clk 0:00:41.1]} 38... Ra1 {[%clk 0:00:17.9]} 39.
Kxb4 {[%clk 0:00:40.1]} 39... Re1 {[%clk 0:00:17.1]} 40. Kc5 {[%clk 0:00:37.8]}
40... Re2 {[%clk 0:00:16.7]} 41. b4 {[%clk 0:00:37.4]} 41... Rxh2 {[%clk
0:00:17.1]} 42. b5 {[%clk 0:00:37.3]} 42... Rb2 {[%clk 0:00:17.2]} 43. b6 {[%clk
0:00:37.1]} 43... Nc8 {[%clk 0:00:15.9]} 44. b7 {[%clk 0:00:36.9]} 44... Na7
{[%clk 0:00:16.3]} 45. b8=Q+ {[%clk 0:00:32.9]} 45... Rxb8 {[%clk 0:00:16]} 46.
Nd7+ {[%clk 0:00:33.5]} 46... Kg7 {[%clk 0:00:16.9]} 47. Nxb8 {[%clk 0:00:34.3]}
47... Nc8 {[%clk 0:00:17.4]} 48. Nc6 {[%clk 0:00:33.4]} 48... f6 {[%clk
0:00:16.2]} 49. e6 {[%clk 0:00:33.2]} 49... f5 {[%clk 0:00:15.7]} 50. Bd5 {[%clk
0:00:31.5]} 50... Kf6 {[%clk 0:00:16.1]} 51. Bc4 {[%clk 0:00:24.2]} 51... g5
{[%clk 0:00:16.4]} 52. fxg5+ {[%clk 0:00:22.5]} 52... Kxg5 {[%clk 0:00:17.3]}
53. Ba6 {[%clk 0:00:22.3]} 53... f4 {[%clk 0:00:16.9]} 54. gxf4+ {[%clk
0:00:22.3]} 54... Kxf4 {[%clk 0:00:17.8]} 55. Bxc8 {[%clk 0:00:22.6]} 1-0

[Event "Early-Titled-Tuesday-Blitz-October-10-2023"]
[Site "Chess.com"]
[Date "2023.10.10"]
[Round "3"]
[White "Perecke"]
[Black "VOneChess"]
[Result "1-0"]
[WhiteElo "2555"]
[BlackElo "2275"]
[TimeControl "180+1"]
[EndTime "8:28:22 PDT"]
[Termination "Perecke won on time"]

1. e4 {[%clk 0:02:58.6]} 1... c5 {[%clk 0:02:58.7]} 2. d4 {[%clk 0:02:58]} 2...
cxd4 {[%clk 0:02:58.6]} 3. c3 {[%clk 0:02:58.9]} 3... Nf6 {[%clk 0:02:59]} 4. e5
{[%clk 0:02:59]} 4... Nd5 {[%clk 0:02:59.3]} 5. cxd4 {[%clk 0:02:59.8]} 5... d6
{[%clk 0:02:59.6]} 6. exd6 {[%clk 0:02:59.1]} 6... e6 {[%clk 0:02:59.5]} 7. Nc3
{[%clk 0:02:59]} 7... Bxd6 {[%clk 0:02:59]} 8. Nxd5 {[%clk 0:02:56.3]} 8... exd5
{[%clk 0:02:59.9]} 9. Nf3 {[%clk 0:02:56.1]} 9... O-O {[%clk 0:02:59.6]} 10. Be2
{[%clk 0:02:54.3]} 10... Nc6 {[%clk 0:02:59.7]} 11. O-O {[%clk 0:02:53]} 11...
Re8 {[%clk 0:03:00.2]} 12. Re1 {[%clk 0:02:51]} 12... Bg4 {[%clk 0:02:59.9]} 13.
h3 {[%clk 0:02:46.4]} 13... Bh5 {[%clk 0:02:59.4]} 14. Bg5 {[%clk 0:02:43.6]}
14... Qd7 {[%clk 0:02:56.2]} 15. Rc1 {[%clk 0:02:42.4]} 15... h6 {[%clk
0:02:53.1]} 16. Be3 {[%clk 0:02:37.2]} 16... Re6 {[%clk 0:02:38.7]} 17. Bd3
{[%clk 0:02:31.5]} 17... Rf6 {[%clk 0:02:33.8]} 18. Be2 {[%clk 0:02:15.5]} 18...
Re8 {[%clk 0:02:33.5]} 19. Qd2 {[%clk 0:02:09.1]} 19... Re4 {[%clk 0:01:34.5]}
20. Ne5 {[%clk 0:01:51.4]} 20... Bxe5 {[%clk 0:01:14.6]} 21. dxe5 {[%clk
0:01:47.9]} 21... Rxe5 {[%clk 0:01:14.8]} 22. Bb5 {[%clk 0:01:21.6]} 22... Rg6
{[%clk 0:01:02.4]} 23. Bd3 {[%clk 0:01:15.2]} 23... Rge6 {[%clk 0:00:36.9]} 24.
Bf4 {[%clk 0:01:06.3]} 24... Rxe1+ {[%clk 0:00:33.7]} 25. Rxe1 {[%clk
0:01:07.2]} 25... Qe7 {[%clk 0:00:04.9]} 26. Rxe6 {[%clk 0:01:00.5]} 26... fxe6
{[%clk 0:00:05.8]} 27. Bc2 {[%clk 0:00:55.1]} 27... Bf7 {[%clk 0:00:04.2]} 28.
Qd3 {[%clk 0:00:39.8]} 28... Kf8 {[%clk 0:00:02.1]} 29. Qh7 {[%clk 0:00:37]}
29... Bg8 {[%clk 0:00:02.6]} 30. Qg6 {[%clk 0:00:35.2]} 30... e5 {[%clk
0:00:02.5]} 31. Bg3 {[%clk 0:00:34.4]} 31... Bf7 {[%clk 0:00:03]} 32. Qg4 {[%clk
0:00:25.3]} 32... Qf6 {[%clk 0:00:02.4]} 33. Bh4 {[%clk 0:00:20.5]} 33... Qe6
{[%clk 0:00:01.8]} 34. Bf5 {[%clk 0:00:19.6]} 34... Qd6 {[%clk 0:00:01.7]} 35.
Bg3 {[%clk 0:00:18.1]} 35... Nd4 {[%clk 0:00:02.2]} 36. Bd3 {[%clk 0:00:16.7]}
36... Qc5 {[%clk 0:00:01.7]} 37. Qd7 {[%clk 0:00:14.8]} 37... Nc6 {[%clk
0:00:01.3]} 38. Qc8+ {[%clk 0:00:14.4]} 38... Be8 {[%clk 0:00:01.2]} 39. Bg6
{[%clk 0:00:13]} 39... Qe7 {[%clk 0:00:01.8]} 40. Bh4 {[%clk 0:00:13.1]} 1-0

[Event "Early-Titled-Tuesday-Blitz-October-10-2023"]
[Site "Chess.com"]
[Date "2023.10.10"]
[Round "3"]
[White "maracayo"]
[Black "j2806"]
[Result "1/2-1/2"]
[WhiteElo "2379"]
[BlackElo "2152"]
[TimeControl "180+1"]
[EndTime "8:28:22 PDT"]
[Termination "Game drawn by agreement"]

1. e4 {[%clk 0:03:00.9]} 1... c5 {[%clk 0:02:59.9]} 2. Nf3 {[%clk 0:02:58.4]}
2... d6 {[%clk 0:02:59.9]} 3. d3 {[%clk 0:02:54.9]} 3... e6 {[%clk 0:02:58.4]}
4. Nbd2 {[%clk 0:02:54.3]} 4... Nf6 {[%clk 0:02:59]} 5. c3 {[%clk 0:02:54]} 5...
Be7 {[%clk 0:02:59.4]} 6. Be2 {[%clk 0:02:52.4]} 6... Nc6 {[%clk 0:02:59.4]} 7.
O-O {[%clk 0:02:51.9]} 7... O-O {[%clk 0:02:59.6]} 8. Re1 {[%clk 0:02:51.9]}
8... b5 {[%clk 0:02:57.6]} 9. a3 {[%clk 0:02:51.1]} 9... a6 {[%clk 0:02:57.8]}
10. d4 {[%clk 0:02:50.9]} 10... Bb7 {[%clk 0:02:58.4]} 11. Bf1 {[%clk
0:02:47.8]} 11... d5 {[%clk 0:02:45.2]} 12. e5 {[%clk 0:02:31.1]} 12... Nd7
{[%clk 0:02:45.3]} 13. b4 {[%clk 0:02:22.6]} 13... cxd4 {[%clk 0:02:40.5]} 14.
cxd4 {[%clk 0:02:21.7]} 14... Nb6 {[%clk 0:02:39.1]} 15. Nb3 {[%clk 0:02:20.2]}
15... Nc4 {[%clk 0:02:35.4]} 16. Nc5 {[%clk 0:02:19.5]} 16... Bxc5 {[%clk
0:02:25.4]} 17. dxc5 {[%clk 0:02:05.1]} 17... a5 {[%clk 0:02:23.2]} 18. Bg5
{[%clk 0:01:53.7]} 18... Qc7 {[%clk 0:02:11.4]} 19. Bxc4 {[%clk 0:01:42.8]}
19... dxc4 {[%clk 0:02:05.3]} 20. a4 {[%clk 0:01:29]} 20... Nxb4 {[%clk
0:01:52.5]} 21. Qd6 {[%clk 0:01:10.1]} 21... Qxd6 {[%clk 0:01:44.8]} 22. exd6
{[%clk 0:01:11]} 22... Nc2 {[%clk 0:01:43.1]} 23. axb5 {[%clk 0:01:08.2]} 23...
Nxa1 {[%clk 0:01:31.1]} 24. Rxa1 {[%clk 0:01:06.3]} 24... Rfc8 {[%clk
0:01:23.3]} 25. c6 {[%clk 0:00:21.7]} 25... Bxc6 {[%clk 0:01:18]} 26. bxc6
{[%clk 0:00:22.6]} 26... f6 {[%clk 0:01:12.8]} 27. c7 {[%clk 0:00:18.7]} 27...
fxg5 {[%clk 0:01:05.1]} 28. Ne5 {[%clk 0:00:18.4]} 28... c3 {[%clk 0:00:55.9]}
29. Nc4 {[%clk 0:00:18.1]} 29... Kf7 {[%clk 0:00:43.8]} 30. Nb6 {[%clk
0:00:17.3]} 30... c2 {[%clk 0:00:25.4]} 31. Nxc8 {[%clk 0:00:15.4]} 31... Rxc8
{[%clk 0:00:25.1]} 32. Rc1 {[%clk 0:00:10.2]} 32... Ke8 {[%clk 0:00:23.9]} 33.
Rxc2 {[%clk 0:00:10.3]} 33... Kd7 {[%clk 0:00:24]} 34. Rd2 {[%clk 0:00:10.6]}
34... a4 {[%clk 0:00:22.4]} 35. h4 {[%clk 0:00:11.4]} 35... gxh4 {[%clk
0:00:22.1]} 36. Rd4 {[%clk 0:00:11.2]} 36... h6 {[%clk 0:00:18.3]} 37. Rxa4
{[%clk 0:00:12.1]} 37... Kxd6 {[%clk 0:00:18.3]} 38. Rd4+ {[%clk 0:00:13]} 38...
Kxc7 {[%clk 0:00:17.7]} 39. Rxh4 {[%clk 0:00:13.9]} 39... Kd6 {[%clk 0:00:17.4]}
40. Rg4 {[%clk 0:00:14.2]} 40... Rc7 {[%clk 0:00:17.5]} 41. Re4 {[%clk 0:00:14]}
41... Kd5 {[%clk 0:00:17.2]} 42. f3 {[%clk 0:00:14.9]} 42... e5 {[%clk
0:00:16.2]} 43. Kh2 {[%clk 0:00:15.8]} 43... g5 {[%clk 0:00:15.8]} 44. Kg3
{[%clk 0:00:16.5]} 44... Rc6 {[%clk 0:00:14]} 45. Kg4 {[%clk 0:00:16.6]} 45...
Rf6 {[%clk 0:00:13.2]} 46. Kh5 {[%clk 0:00:16.4]} 46... Ke6 {[%clk 0:00:13]} 47.
Re1 {[%clk 0:00:14.6]} 47... Kf5 {[%clk 0:00:12.1]} 48. Re4 {[%clk 0:00:14]}
1/2-1/2

[Event "Early-Titled-Tuesday-Blitz-October-10-2023"]
[Site "Chess.com"]
[Date "2023.10.10"]
[Round "3"]
[White "cristiano78"]
[Black "FoxOnTheRun97"]
[Result "0-1"]
[WhiteElo "2253"]
[BlackElo "2552"]
[TimeControl "180+1"]
[EndTime "8:28:23 PDT"]
[Termination "FoxOnTheRun97 won by resignation"]

1. d4 {[%clk 0:02:59.9]} 1... Nf6 {[%clk 0:02:59.9]} 2. c4 {[%clk 0:02:59.6]}
2... e6 {[%clk 0:02:59.9]} 3. Nf3 {[%clk 0:02:59.6]} 3... d5 {[%clk 0:02:59.6]}
4. Nc3 {[%clk 0:02:59.3]} 4... Be7 {[%clk 0:02:59.1]} 5. Bg5 {[%clk 0:02:57.5]}
5... h6 {[%clk 0:02:57.9]} 6. Bh4 {[%clk 0:02:57.4]} 6... g5 {[%clk 0:02:52.5]}
7. Bg3 {[%clk 0:02:57.2]} 7... dxc4 {[%clk 0:02:51.2]} 8. e4 {[%clk 0:02:55.7]}
8... c5 {[%clk 0:02:50.9]} 9. Bxc4 {[%clk 0:02:53.4]} 9... cxd4 {[%clk
0:02:49.5]} 10. Bb5+ {[%clk 0:02:47.9]} 10... Bd7 {[%clk 0:02:43.2]} 11. Nxd4
{[%clk 0:02:46.5]} 11... a6 {[%clk 0:02:38.9]} 12. Bxd7+ {[%clk 0:02:43.4]}
12... Nbxd7 {[%clk 0:02:39.8]} 13. e5 {[%clk 0:02:35.1]} 13... Nh7 {[%clk
0:02:16]} 14. O-O {[%clk 0:02:28.4]} 14... O-O {[%clk 0:02:13.1]} 15. Ne4 {[%clk
0:02:24.4]} 15... Nc5 {[%clk 0:02:09.9]} 16. Nd6 {[%clk 0:02:17.6]} 16... Bxd6
{[%clk 0:01:51.8]} 17. exd6 {[%clk 0:02:16.9]} 17... Ne4 {[%clk 0:01:51]} 18.
Be5 {[%clk 0:01:53.5]} 18... Qd7 {[%clk 0:01:24.1]} 19. Qh5 {[%clk 0:01:45]}
19... f6 {[%clk 0:01:22]} 20. Qg6+ {[%clk 0:01:38.6]} 20... Kh8 {[%clk
0:00:55.4]} 21. Qxe4 {[%clk 0:01:36.3]} 21... fxe5 {[%clk 0:00:56]} 22. Qxe5+
{[%clk 0:01:35.6]} 22... Rf6 {[%clk 0:00:56.5]} 23. f4 {[%clk 0:01:30]} 23... g4
{[%clk 0:00:49]} 24. f5 {[%clk 0:01:26.6]} 24... exf5 {[%clk 0:00:48]} 25. Rxf5
{[%clk 0:01:25.5]} 25... Qxd6 {[%clk 0:00:41.6]} 26. Re1 {[%clk 0:01:05.2]}
26... Qxe5 {[%clk 0:00:38.9]} 27. Rexe5 {[%clk 0:01:03.7]} 27... Rd8 {[%clk
0:00:35.4]} 28. Rd5 {[%clk 0:00:38.4]} 28... Rfd6 {[%clk 0:00:30.2]} 29. Rxd6
{[%clk 0:00:27.4]} 29... Rxd6 {[%clk 0:00:31.1]} 30. Nb3 {[%clk 0:00:25]} 30...
Kg7 {[%clk 0:00:26.7]} 31. Rc5 {[%clk 0:00:21.9]} 31... b6 {[%clk 0:00:23.9]}
32. Rc7+ {[%clk 0:00:17.7]} 32... Kg6 {[%clk 0:00:24.3]} 33. Kf2 {[%clk
0:00:18]} 33... Nf6 {[%clk 0:00:23.6]} 34. Kg3 {[%clk 0:00:13]} 34... h5 {[%clk
0:00:23.3]} 35. Kf2 {[%clk 0:00:04.9]} 35... Ne4+ {[%clk 0:00:21.2]} 36. Ke3
{[%clk 0:00:05.1]} 36... Ng5 {[%clk 0:00:19.6]} 37. Rc3 {[%clk 0:00:04.3]} 37...
Re6+ {[%clk 0:00:19.7]} 38. Kf2 {[%clk 0:00:04.5]} 38... Ne4+ {[%clk 0:00:19.5]}
39. Kf1 {[%clk 0:00:02.9]} 39... Nxc3 {[%clk 0:00:19.9]} 40. bxc3 {[%clk
0:00:03.5]} 40... Rc6 {[%clk 0:00:20]} 41. Nd4 {[%clk 0:00:02.8]} 41... Rxc3
{[%clk 0:00:19.4]} 42. Ke2 {[%clk 0:00:03.2]} 42... Ra3 {[%clk 0:00:19.2]} 0-1

[Event "Early-Titled-Tuesday-Blitz-October-10-2023"]
[Site "Chess.com"]
[Date "2023.10.10"]
[Round "3"]
[White "inagreV"]
[Black "Cheer_Down"]
[Result "0-1"]
[WhiteElo "2267"]
[BlackElo "2496"]
[TimeControl "180+1"]
[EndTime "8:28:24 PDT"]
[Termination "Cheer_Down won by resignation"]

1. e4 {[%clk 0:03:00.9]} 1... c5 {[%clk 0:02:59.6]} 2. Nf3 {[%clk 0:03:00.6]}
2... d6 {[%clk 0:02:59.6]} 3. d4 {[%clk 0:03:00.4]} 3... cxd4 {[%clk 0:03:00.5]}
4. Nxd4 {[%clk 0:03:01.1]} 4... Nf6 {[%clk 0:03:00.4]} 5. Nc3 {[%clk 0:03:01.4]}
5... a6 {[%clk 0:03:00.8]} 6. Nf3 {[%clk 0:02:56.7]} 6... Nc6 {[%clk 0:02:54]}
7. Bf4 {[%clk 0:02:53.8]} 7... e6 {[%clk 0:02:50]} 8. e5 {[%clk 0:02:52.2]} 8...
dxe5 {[%clk 0:02:48.5]} 9. Qxd8+ {[%clk 0:02:52.5]} 9... Kxd8 {[%clk 0:02:47.8]}
10. Nxe5 {[%clk 0:02:53.1]} 10... Nxe5 {[%clk 0:02:40.6]} 11. Bxe5 {[%clk
0:02:54]} 11... Bd7 {[%clk 0:02:17.5]} 12. O-O-O {[%clk 0:02:52.6]} 12... Kc8
{[%clk 0:02:17.9]} 13. Be2 {[%clk 0:02:40.8]} 13... Bc5 {[%clk 0:02:17.2]} 14.
Bxf6 {[%clk 0:02:34.7]} 14... gxf6 {[%clk 0:02:17.1]} 15. Ne4 {[%clk 0:02:35.3]}
15... Be7 {[%clk 0:02:16.6]} 16. Bf3 {[%clk 0:02:30.1]} 16... Kc7 {[%clk
0:02:13.6]} 17. Rd3 {[%clk 0:02:22.8]} 17... Bc6 {[%clk 0:02:10.3]} 18. Rc3
{[%clk 0:02:18]} 18... Rad8 {[%clk 0:01:54.8]} 19. Nc5 {[%clk 0:02:11.7]} 19...
Bxc5 {[%clk 0:01:48.2]} 20. Rxc5 {[%clk 0:02:08.9]} 20... Kb6 {[%clk 0:01:48.1]}
21. Rc3 {[%clk 0:02:08.4]} 21... Rd6 {[%clk 0:01:37.2]} 22. Bxc6 {[%clk
0:02:00.9]} 22... bxc6 {[%clk 0:01:35.5]} 23. Rd1 {[%clk 0:01:52]} 23... Rxd1+
{[%clk 0:01:31.9]} 24. Kxd1 {[%clk 0:01:52.9]} 24... Rg8 {[%clk 0:01:32]} 25. g3
{[%clk 0:01:50.9]} 25... Rd8+ {[%clk 0:01:24.4]} 26. Ke2 {[%clk 0:01:49.8]}
26... Rd5 {[%clk 0:01:17.8]} 27. Rf3 {[%clk 0:01:29.2]} 27... f5 {[%clk
0:01:17.7]} 28. c4 {[%clk 0:01:26]} 28... Rd4 {[%clk 0:01:14.6]} 29. b3 {[%clk
0:01:26.1]} 29... c5 {[%clk 0:01:11.9]} 30. Rd3 {[%clk 0:01:16.8]} 30... Re4+
{[%clk 0:01:11.3]} 31. Kd2 {[%clk 0:01:14.8]} 31... Kc7 {[%clk 0:01:02.1]} 32.
f3 {[%clk 0:01:00.9]} 32... Re5 {[%clk 0:01:02.2]} 33. Re3 {[%clk 0:00:55.8]}
33... f6 {[%clk 0:01:02.4]} 34. Kd3 {[%clk 0:00:46.7]} 34... a5 {[%clk
0:00:57.8]} 35. a3 {[%clk 0:00:43.2]} 35... h5 {[%clk 0:00:52.8]} 36. f4 {[%clk
0:00:30.4]} 36... Rxe3+ {[%clk 0:00:52.7]} 37. Kxe3 {[%clk 0:00:31.3]} 37... e5
{[%clk 0:00:53.1]} 38. h3 {[%clk 0:00:19.6]} 38... Kb6 {[%clk 0:00:46.4]} 39. a4
{[%clk 0:00:06.4]} 39... Kc6 {[%clk 0:00:45.2]} 40. fxe5 {[%clk 0:00:06.5]}
40... fxe5 {[%clk 0:00:44.9]} 41. Kf3 {[%clk 0:00:06.9]} 41... Kd6 {[%clk
0:00:43.9]} 42. Ke3 {[%clk 0:00:07]} 42... Ke6 {[%clk 0:00:43.7]} 43. Kf3 {[%clk
0:00:07.4]} 43... Kf7 {[%clk 0:00:25.7]} 44. h4 {[%clk 0:00:07.1]} 44... e4+
{[%clk 0:00:22.6]} 45. Ke3 {[%clk 0:00:04.4]} 45... Ke6 {[%clk 0:00:22]} 46. Kf4
{[%clk 0:00:04.6]} 46... Kf6 {[%clk 0:00:22.2]} 47. Ke3 {[%clk 0:00:04.8]} 47...
Ke5 {[%clk 0:00:22.7]} 48. b4 {[%clk 0:00:05]} 48... cxb4 {[%clk 0:00:21.1]} 0-1

[Event "Early-Titled-Tuesday-Blitz-October-10-2023"]
[Site "Chess.com"]
[Date "2023.10.10"]
[Round "3"]
[White "NovoselovRoman"]
[Black "vladoboch"]
[Result "0-1"]
[WhiteElo "2612"]
[BlackElo "2465"]
[TimeControl "180+1"]
[EndTime "8:28:26 PDT"]
[Termination "vladoboch won on time"]

1. e4 {[%clk 0:02:54.1]} 1... e5 {[%clk 0:02:59.9]} 2. Nf3 {[%clk 0:02:51.8]}
2... Nc6 {[%clk 0:02:59.8]} 3. Bc4 {[%clk 0:02:51.9]} 3... Nf6 {[%clk
0:02:59.2]} 4. d3 {[%clk 0:02:48]} 4... h6 {[%clk 0:02:59.5]} 5. Nc3 {[%clk
0:02:39.6]} 5... d6 {[%clk 0:02:57.5]} 6. Nd5 {[%clk 0:02:33.5]} 6... Nxd5
{[%clk 0:02:53.9]} 7. Bxd5 {[%clk 0:02:34.4]} 7... Ne7 {[%clk 0:02:53.9]} 8. Bb3
{[%clk 0:02:33.9]} 8... g5 {[%clk 0:02:53.9]} 9. c3 {[%clk 0:02:30.5]} 9... Bg7
{[%clk 0:02:52.1]} 10. Be3 {[%clk 0:02:23.7]} 10... O-O {[%clk 0:02:51.8]} 11.
Bxg5 {[%clk 0:02:15.3]} 11... hxg5 {[%clk 0:02:50.8]} 12. Nxg5 {[%clk
0:02:15.4]} 12... Bf6 {[%clk 0:02:09.2]} 13. Qh5 {[%clk 0:02:02]} 13... Bxg5
{[%clk 0:02:06.8]} 14. Qxg5+ {[%clk 0:02:02.9]} 14... Kh7 {[%clk 0:02:05.4]} 15.
O-O-O {[%clk 0:01:53.2]} 15... Ng6 {[%clk 0:02:05.5]} 16. Qh5+ {[%clk
0:01:35.9]} 16... Kg7 {[%clk 0:02:04.9]} 17. g3 {[%clk 0:01:36.8]} 17... Rh8
{[%clk 0:01:55.2]} 18. Qe2 {[%clk 0:01:35.7]} 18... Bh3 {[%clk 0:01:46]} 19. f4
{[%clk 0:01:31]} 19... Qf6 {[%clk 0:01:32.7]} 20. Kb1 {[%clk 0:01:19.4]} 20...
a5 {[%clk 0:01:31]} 21. d4 {[%clk 0:01:12.1]} 21... exf4 {[%clk 0:01:28.8]} 22.
gxf4 {[%clk 0:01:09.3]} 22... Qxf4 {[%clk 0:01:23.8]} 23. Rdf1 {[%clk
0:00:56.8]} 23... Bxf1 {[%clk 0:01:23]} 24. Rxf1 {[%clk 0:00:57.7]} 24... Rxh2
{[%clk 0:01:11.6]} 25. Qe1 {[%clk 0:00:55.9]} 25... Qd2 {[%clk 0:01:00.6]} 26.
Rxf7+ {[%clk 0:00:43.4]} 26... Kh6 {[%clk 0:01:00.1]} 27. Qxd2+ {[%clk
0:00:37.5]} 27... Rxd2 {[%clk 0:01:01]} 28. Rxc7 {[%clk 0:00:38.1]} 28... a4
{[%clk 0:00:58.1]} 29. Bd5 {[%clk 0:00:35.8]} 29... a3 {[%clk 0:00:52.3]} 30.
bxa3 {[%clk 0:00:33.1]} 30... Rf8 {[%clk 0:00:45.9]} 31. Bf7 {[%clk 0:00:24]}
31... b5 {[%clk 0:00:34.8]} 32. Kc1 {[%clk 0:00:15.1]} 32... Rg2 {[%clk
0:00:31.5]} 33. a4 {[%clk 0:00:12.6]} 33... bxa4 {[%clk 0:00:26]} 34. Rd7 {[%clk
0:00:04.9]} 34... Rf2 {[%clk 0:00:14.7]} 35. Bc4 {[%clk 0:00:03]} 35... R8f6
{[%clk 0:00:09.7]} 36. Kd1 {[%clk 0:00:01.6]} 36... Nf4 {[%clk 0:00:09.2]} 37.
Ke1 {[%clk 0:00:01.4]} 37... Ng2+ {[%clk 0:00:09.5]} 38. Kd1 {[%clk 0:00:01.2]}
38... Ne3+ {[%clk 0:00:10.4]} 0-1